[Event "Titled Tuesday Blitz May 16 Late 2023"]
[White "Geivondian, Arman"]
[Black "Djokic, Mihailo"]
[WhiteFideId "24102032"]
[BlackFideId "976440"]
[WhiteElo "2278"]
[BlackElo "2294"]
[Result "1-0"]
[Round "01"]
[TimeControl "180+2"]
[Date "2023.05.16"]
[WhiteClock "0:02:49"]
[BlackClock "0:00:54"]

1. e4 {[%clk 0:02:59]}  c5 {[%clk 0:02:58]} 2. Nf3 {[%clk 0:03:00]}  d6 {[%clk 0:02:54]} 3. Bb5+ {[%clk 0:03:00]}  Bd7 {[%clk 0:02:53]} 4. Bxd7+ {[%clk 0:03:00]}  Qxd7 {[%clk 0:02:52]} 5. c4 {[%clk 0:03:00]}  Nc6 {[%clk 0:02:45]} 6. Nc3 {[%clk 0:03:00]}  g6 {[%clk 0:02:39]} 7. d4 {[%clk 0:03:00]}  cxd4 {[%clk 0:02:40]} 8. Nxd4 {[%clk 0:03:01]}  Bg7 {[%clk 0:02:34]} 9. Be3 {[%clk 0:03:01]}  Nf6 {[%clk 0:02:30]} 10. f3 {[%clk 0:03:02]}  O-O {[%clk 0:02:21]} 11. O-O {[%clk 0:03:02]}  Rfd8 {[%clk 0:02:19]} 12. Rc1 {[%clk 0:03:01]}  e6 {[%clk 0:02:15]} 13. Qd2 {[%clk 0:02:58]}  d5 {[%clk 0:02:13]} 14. Nxc6 {[%clk 0:02:58]}  bxc6 {[%clk 0:02:13]} 15. cxd5 {[%clk 0:02:58]}  cxd5 {[%clk 0:02:12]} 16. exd5 {[%clk 0:02:59]}  Nxd5 {[%clk 0:02:07]} 17. Nxd5 {[%clk 0:02:59]}  Qxd5 {[%clk 0:02:07]} 18. Qxd5 {[%clk 0:02:59]}  Rxd5 {[%clk 0:02:08]} 19. b3 {[%clk 0:03:00]}  a5 {[%clk 0:02:08]} 20. Rc4 {[%clk 0:02:59]}  Rd3 {[%clk 0:02:02]} 21. Kf2 {[%clk 0:02:59]}  a4 {[%clk 0:02:02]} 22. b4 {[%clk 0:02:53]}  Ra3 {[%clk 0:01:55]} 23. Rc2 {[%clk 0:02:53]}  Rb8 {[%clk 0:01:55]} 24. Rb1 {[%clk 0:02:53]}  h5 {[%clk 0:01:48]} 25. b5 {[%clk 0:02:53]}  Be5 {[%clk 0:01:42]} 26. b6 {[%clk 0:02:51]}  Rb7 {[%clk 0:01:37]} 27. Ke2 {[%clk 0:02:49]}  Bxh2 {[%clk 0:00:54]} 28. Bc5 {[%clk 0:02:49]} 1-0


[Site "https://www.chess.com"]

[Event "Titled Tuesday Blitz May 16 Late 2023"]
[White "Tanenbaum, Zachary"]
[Black "Lozano Ramirez, Nestor Favian"]
[WhiteFideId "2060850"]
[BlackFideId "4412672"]
[WhiteElo "2175"]
[BlackElo "2254"]
[Result "1-0"]
[Round "01"]
[TimeControl "180+2"]
[Date "2023.05.16"]
[WhiteClock "0:00:11"]
[BlackClock "0:00:14"]

1. e4 {[%clk 0:02:43]}  g6 {[%clk 0:03:00]} 2. d4 {[%clk 0:02:43]}  Bg7 {[%clk 0:03:00]} 3. Nc3 {[%clk 0:02:43]}  d6 {[%clk 0:03:00]} 4. Be3 {[%clk 0:02:43]}  a6 {[%clk 0:03:01]} 5. Qd2 {[%clk 0:02:43]}  b5 {[%clk 0:03:01]} 6. h4 {[%clk 0:02:43]}  Nf6 {[%clk 0:02:57]} 7. Bd3 {[%clk 0:02:41]}  Ng4 {[%clk 0:02:53]} 8. h5 {[%clk 0:02:37]}  c5 {[%clk 0:02:32]} 9. dxc5 {[%clk 0:02:20]}  Nxe3 {[%clk 0:02:28]} 10. Qxe3 {[%clk 0:02:21]}  Qa5 {[%clk 0:02:23]} 11. Ne2 {[%clk 0:02:18]}  b4 {[%clk 0:02:18]} 12. Nd5 {[%clk 0:02:18]}  Bxb2 {[%clk 0:02:11]} 13. Rb1 {[%clk 0:02:13]}  b3+ {[%clk 0:02:10]} 14. c3 {[%clk 0:01:53]}  bxa2 {[%clk 0:02:08]} 15. O-O {[%clk 0:01:52]}  axb1=Q {[%clk 0:01:46]} 16. Rxb1 {[%clk 0:01:53]}  dxc5 {[%clk 0:01:41]} 17. Rxb2 {[%clk 0:01:48]}  Nd7 {[%clk 0:01:40]} 18. Qh6 {[%clk 0:01:02]}  e6 {[%clk 0:01:27]} 19. Ne3 {[%clk 0:00:59]}  c4 {[%clk 0:01:11]} 20. Nxc4 {[%clk 0:00:55]}  Qxh5 {[%clk 0:01:11]} 21. Qg7 {[%clk 0:00:54]}  Rf8 {[%clk 0:01:10]} 22. e5 {[%clk 0:00:27]}  Ke7 {[%clk 0:01:04]} 23. f4 {[%clk 0:00:24]}  Qh4 {[%clk 0:01:02]} 24. Nd4 {[%clk 0:00:19]}  Bb7 {[%clk 0:00:33]} 25. Rxb7 {[%clk 0:00:18]}  Rac8 {[%clk 0:00:34]} 26. Nb6 {[%clk 0:00:15]}  Qe1+ {[%clk 0:00:32]} 27. Bf1 {[%clk 0:00:15]}  Qe3+ {[%clk 0:00:31]} 28. Kh1 {[%clk 0:00:15]}  Qe1 {[%clk 0:00:20]} 29. Rxd7+ {[%clk 0:00:14]}  Ke8 {[%clk 0:00:14]} 30. Qf6 {[%clk 0:00:11]} 1-0


[Site "https://www.chess.com"]

[Event "Titled Tuesday Blitz May 16 Late 2023"]
[White "Csonka, Balazs"]
[Black "Malicka, Maria"]
[WhiteFideId "742910"]
[BlackFideId "1197576"]
[WhiteElo "2404"]
[BlackElo "2227"]
[Result "1-0"]
[Round "01"]
[TimeControl "180+2"]
[Date "2023.05.16"]
[WhiteClock "0:00:14"]
[BlackClock "0:00:56"]

1. e4 {[%clk 0:03:00]}  c5 {[%clk 0:02:53]} 2. Nc3 {[%clk 0:02:58]}  g6 {[%clk 0:02:52]} 3. d4 {[%clk 0:02:53]}  Bg7 {[%clk 0:02:52]} 4. dxc5 {[%clk 0:02:52]}  Nc6 {[%clk 0:02:52]} 5. Be3 {[%clk 0:02:45]}  Qa5 {[%clk 0:02:51]} 6. Ne2 {[%clk 0:02:44]}  Nf6 {[%clk 0:02:48]} 7. f3 {[%clk 0:02:44]}  O-O {[%clk 0:02:44]} 8. a3 {[%clk 0:02:36]}  a6 {[%clk 0:02:41]} 9. Qd2 {[%clk 0:02:28]}  Rd8 {[%clk 0:02:31]} 10. O-O-O {[%clk 0:01:48]}  Ne8 {[%clk 0:02:15]} 11. Nd5 {[%clk 0:01:40]}  Qxd2+ {[%clk 0:02:12]} 12. Rxd2 {[%clk 0:01:41]}  d6 {[%clk 0:02:06]} 13. Nec3 {[%clk 0:01:34]}  Be6 {[%clk 0:01:49]} 14. Rd1 {[%clk 0:01:06]}  Rac8 {[%clk 0:01:45]} 15. Nb6 {[%clk 0:01:03]}  Rc7 {[%clk 0:01:45]} 16. Ncd5 {[%clk 0:01:01]}  Bxd5 {[%clk 0:01:41]} 17. Nxd5 {[%clk 0:01:01]}  Rcc8 {[%clk 0:01:40]} 18. Be2 {[%clk 0:00:57]}  dxc5 {[%clk 0:01:39]} 19. Bxc5 {[%clk 0:00:57]}  Nd6 {[%clk 0:01:33]} 20. Nxe7+ {[%clk 0:00:54]}  Nxe7 {[%clk 0:01:33]} 21. Rxd6 {[%clk 0:00:50]}  Re8 {[%clk 0:01:33]} 22. Be3 {[%clk 0:00:48]}  Nc6 {[%clk 0:01:33]} 23. Rhd1 {[%clk 0:00:43]}  b5 {[%clk 0:01:33]} 24. Kb1 {[%clk 0:00:32]}  f5 {[%clk 0:01:29]} 25. Bd3 {[%clk 0:00:31]}  Be5 {[%clk 0:01:27]} 26. Rd7 {[%clk 0:00:31]}  Bxh2 {[%clk 0:01:25]} 27. Rh1 {[%clk 0:00:29]}  Ne5 {[%clk 0:01:25]} 28. Ra7 {[%clk 0:00:23]}  Nxd3 {[%clk 0:01:25]} 29. cxd3 {[%clk 0:00:22]}  Be5 {[%clk 0:01:24]} 30. Rhxh7 {[%clk 0:00:17]}  f4 {[%clk 0:01:24]} 31. Bf2 {[%clk 0:00:16]}  Red8 {[%clk 0:01:23]} 32. Rad7 {[%clk 0:00:15]}  Rxd7 {[%clk 0:01:19]} 33. Rxd7 {[%clk 0:00:16]}  Bg7 {[%clk 0:01:18]} 34. d4 {[%clk 0:00:16]}  g5 {[%clk 0:01:15]} 35. Rd6 {[%clk 0:00:16]}  Kf7 {[%clk 0:01:14]} 36. Rxa6 {[%clk 0:00:16]}  Rc4 {[%clk 0:01:12]} 37. Ra7+ {[%clk 0:00:16]}  Kg6 {[%clk 0:01:11]} 38. d5 {[%clk 0:00:14]}  Rc8 {[%clk 0:01:10]} 39. Ra6+ {[%clk 0:00:14]}  Kf7 {[%clk 0:01:08]} 40. Rc6 {[%clk 0:00:15]}  Rh8 {[%clk 0:01:08]} 41. Rc7+ {[%clk 0:00:12]}  Kf8 {[%clk 0:01:01]} 42. Bc5+ {[%clk 0:00:12]}  Kg8 {[%clk 0:00:58]} 43. Rxg7+ {[%clk 0:00:13]}  Kxg7 {[%clk 0:00:58]} 44. Bd4+ {[%clk 0:00:13]}  Kh7 {[%clk 0:00:58]} 45. Bxh8 {[%clk 0:00:13]}  Kxh8 {[%clk 0:00:56]} 46. Kc2 {[%clk 0:00:14]} 1-0


[Site "https://www.chess.com"]

[Event "Titled Tuesday Blitz May 16 Late 2023"]
[White "Bartel, Mateusz"]
[Black "Mazurkiewicz, Michal"]
[WhiteFideId "1112635"]
[BlackFideId "1124943"]
[WhiteElo "2521"]
[BlackElo "2054"]
[Result "1-0"]
[Round "01"]
[TimeControl "180+2"]
[Date "2023.05.16"]
[WhiteClock "0:01:31"]
[BlackClock "0:00:16"]

1. e4 {[%clk 0:02:57]}  d6 {[%clk 0:02:58]} 2. d4 {[%clk 0:02:57]}  Nf6 {[%clk 0:02:59]} 3. Nc3 {[%clk 0:02:57]}  c6 {[%clk 0:02:59]} 4. g3 {[%clk 0:02:52]}  e5 {[%clk 0:02:56]} 5. Nge2 {[%clk 0:02:50]}  Be7 {[%clk 0:02:55]} 6. Bg2 {[%clk 0:02:50]}  O-O {[%clk 0:02:55]} 7. a4 {[%clk 0:02:50]}  Nbd7 {[%clk 0:02:54]} 8. O-O {[%clk 0:02:49]}  a5 {[%clk 0:02:54]} 9. h3 {[%clk 0:02:49]}  Re8 {[%clk 0:02:53]} 10. b3 {[%clk 0:02:38]}  exd4 {[%clk 0:02:44]} 11. Nxd4 {[%clk 0:02:36]}  Nc5 {[%clk 0:02:44]} 12. Bb2 {[%clk 0:02:34]}  Bf8 {[%clk 0:02:42]} 13. Re1 {[%clk 0:02:30]}  g6 {[%clk 0:02:12]} 14. Qd2 {[%clk 0:02:26]}  Bg7 {[%clk 0:02:09]} 15. Rad1 {[%clk 0:02:26]}  Qb6 {[%clk 0:01:58]} 16. g4 {[%clk 0:02:11]}  Qb4 {[%clk 0:01:27]} 17. g5 {[%clk 0:01:39]}  Nh5 {[%clk 0:01:27]} 18. Nde2 {[%clk 0:01:36]}  Nxa4 {[%clk 0:00:51]} 19. Nxa4 {[%clk 0:01:33]}  Qxd2 {[%clk 0:00:16]} 20. Rxd2 {[%clk 0:01:31]} 1-0


[Site "https://www.chess.com"]

[Event "Titled Tuesday Blitz May 16 Late 2023"]
[White "Szyszylo, Rafal"]
[Black "Weetik, Vjacheslav"]
[WhiteFideId "1109626"]
[BlackFideId "4153472"]
[WhiteElo "1951"]
[BlackElo "2469"]
[Result "0-1"]
[Round "01"]
[TimeControl "180+2"]
[Date "2023.05.16"]
[WhiteClock "0:01:10"]
[BlackClock "0:02:12"]

1. e4 {[%clk 0:02:50]}  c5 {[%clk 0:02:59]} 2. Nf3 {[%clk 0:02:49]}  Nc6 {[%clk 0:02:59]} 3. Bb5 {[%clk 0:02:48]}  g6 {[%clk 0:02:59]} 4. c3 {[%clk 0:02:47]}  Nf6 {[%clk 0:02:59]} 5. e5 {[%clk 0:02:45]}  Nd5 {[%clk 0:02:59]} 6. O-O {[%clk 0:02:44]}  Bg7 {[%clk 0:02:59]} 7. d4 {[%clk 0:02:41]}  cxd4 {[%clk 0:02:59]} 8. cxd4 {[%clk 0:02:40]}  d6 {[%clk 0:02:51]} 9. exd6 {[%clk 0:02:31]}  Qxd6 {[%clk 0:02:51]} 10. Nc3 {[%clk 0:02:29]}  O-O {[%clk 0:02:51]} 11. Re1 {[%clk 0:02:28]}  Bg4 {[%clk 0:02:48]} 12. Be2 {[%clk 0:02:23]}  Rad8 {[%clk 0:02:43]} 13. Ne4 {[%clk 0:02:14]}  Qc7 {[%clk 0:02:31]} 14. Neg5 {[%clk 0:02:00]}  h6 {[%clk 0:02:21]} 15. h3 {[%clk 0:02:00]}  Bf5 {[%clk 0:02:20]} 16. g4 {[%clk 0:01:58]}  Bc8 {[%clk 0:02:16]} 17. Ne4 {[%clk 0:01:57]}  Nf4 {[%clk 0:02:16]} 18. Bxf4 {[%clk 0:01:50]}  Qxf4 {[%clk 0:02:15]} 19. Nc3 {[%clk 0:01:15]}  Nxd4 {[%clk 0:02:13]} 20. Nxd4 {[%clk 0:01:15]}  Bxd4 {[%clk 0:02:13]} 21. Rf1 {[%clk 0:01:10]}  Qg3+ {[%clk 0:02:12]} 0-1


[Site "https://www.chess.com"]

[Event "Titled Tuesday Blitz May 16 Late 2023"]
[White "Arnold, Ken"]
[Black "Timmermans, Mark"]
[WhiteFideId "2056836"]
[BlackFideId "1026399"]
[WhiteElo "2402"]
[BlackElo "2460"]
[Result "0-1"]
[Round "01"]
[TimeControl "180+2"]
[Date "2023.05.16"]
[WhiteClock "0:00:00"]
[BlackClock "0:00:44"]

1. d4 {[%clk 0:02:57]}  Nf6 {[%clk 0:02:57]} 2. c4 {[%clk 0:02:52]}  e6 {[%clk 0:02:57]} 3. Nc3 {[%clk 0:02:48]}  Bb4 {[%clk 0:02:56]} 4. Qb3 {[%clk 0:02:47]}  c5 {[%clk 0:02:54]} 5. dxc5 {[%clk 0:02:45]}  Na6 {[%clk 0:02:54]} 6. a3 {[%clk 0:02:29]}  Bxc3+ {[%clk 0:02:53]} 7. Qxc3 {[%clk 0:02:29]}  Nxc5 {[%clk 0:02:52]} 8. Nf3 {[%clk 0:02:15]}  O-O {[%clk 0:02:50]} 9. e3 {[%clk 0:02:13]}  a5 {[%clk 0:02:47]} 10. b3 {[%clk 0:01:48]}  d5 {[%clk 0:02:42]} 11. Be2 {[%clk 0:01:34]}  dxc4 {[%clk 0:02:33]} 12. bxc4 {[%clk 0:01:23]}  b6 {[%clk 0:02:29]} 13. O-O {[%clk 0:01:18]}  Ra7 {[%clk 0:02:26]} 14. Nd4 {[%clk 0:01:10]}  Rd7 {[%clk 0:02:23]} 15. Bf3 {[%clk 0:00:58]}  Ba6 {[%clk 0:02:19]} 16. Bb2 {[%clk 0:00:42]}  Na4 {[%clk 0:02:18]} 17. Qb3 {[%clk 0:00:40]}  Nxb2 {[%clk 0:02:17]} 18. Qxb2 {[%clk 0:00:41]}  Bxc4 {[%clk 0:02:15]} 19. Rfc1 {[%clk 0:00:40]}  Bd5 {[%clk 0:02:06]} 20. Bxd5 {[%clk 0:00:34]}  Nxd5 {[%clk 0:02:07]} 21. Nc6 {[%clk 0:00:33]}  Qf6 {[%clk 0:01:53]} 22. Ne5 {[%clk 0:00:25]}  Rb7 {[%clk 0:01:41]} 23. Rab1 {[%clk 0:00:20]}  b5 {[%clk 0:01:35]} 24. g3 {[%clk 0:00:18]}  b4 {[%clk 0:01:33]} 25. axb4 {[%clk 0:00:16]}  axb4 {[%clk 0:01:31]} 26. Qd4 {[%clk 0:00:15]}  Rfb8 {[%clk 0:01:24]} 27. Rb3 {[%clk 0:00:14]}  h6 {[%clk 0:01:17]} 28. Rcb1 {[%clk 0:00:14]}  Nc3 {[%clk 0:01:15]} 29. Re1 {[%clk 0:00:10]}  Rd8 {[%clk 0:01:11]} 30. Qf4 {[%clk 0:00:09]}  Qxf4 {[%clk 0:01:05]} 31. gxf4 {[%clk 0:00:08]}  g5 {[%clk 0:01:03]} 32. fxg5 {[%clk 0:00:08]}  hxg5 {[%clk 0:01:04]} 33. Ng4 {[%clk 0:00:07]}  Kg7 {[%clk 0:01:02]} 34. h3 {[%clk 0:00:06]}  f5 {[%clk 0:01:01]} 35. Ne5 {[%clk 0:00:05]}  Kf6 {[%clk 0:01:01]} 36. Nf3 {[%clk 0:00:05]}  e5 {[%clk 0:00:56]} 37. Kg2 {[%clk 0:00:03]}  Rg8 {[%clk 0:00:53]} 38. Nh2 {[%clk 0:00:03]}  e4 {[%clk 0:00:48]} 39. Rc1 {[%clk 0:00:03]}  Rgg7 {[%clk 0:00:46]} 40. Rc2 {[%clk 0:00:02]}  Ke5 {[%clk 0:00:44]} 41. Rcb2 {[%clk 0:00:03]}  Nd5 {[%clk 0:00:45]} 42. Nf1 {[%clk 0:00:02]}  Rbc7 {[%clk 0:00:43]} 43. Nd2 {[%clk 0:00:00]}  Rc3 {[%clk 0:00:44]} 0-1


[Site "https://www.chess.com"]

[Event "Titled Tuesday Blitz May 16 Late 2023"]
[White "Wu, Derek"]
[Black "FlemingA"]
[WhiteFideId "30914558"]
[WhiteElo "2174"]
[BlackElo "2399"]
[Result "1-0"]
[Round "01"]
[TimeControl "180+2"]
[Date "2023.05.16"]
[WhiteClock "0:01:01"]
[BlackClock "0:00:18"]

1. e4 {[%clk 0:03:00]}  c5 {[%clk 0:02:56]} 2. Nf3 {[%clk 0:03:01]}  e6 {[%clk 0:02:56]} 3. d4 {[%clk 0:03:01]}  cxd4 {[%clk 0:02:57]} 4. Nxd4 {[%clk 0:03:01]}  Nf6 {[%clk 0:02:57]} 5. Nc3 {[%clk 0:03:01]}  Nc6 {[%clk 0:02:58]} 6. Nxc6 {[%clk 0:03:01]}  bxc6 {[%clk 0:02:58]} 7. e5 {[%clk 0:03:02]}  Nd5 {[%clk 0:02:58]} 8. Ne4 {[%clk 0:03:02]}  Qc7 {[%clk 0:02:58]} 9. f4 {[%clk 0:03:02]}  Rb8 {[%clk 0:02:58]} 10. c4 {[%clk 0:02:56]}  Bb4+ {[%clk 0:02:58]} 11. Ke2 {[%clk 0:02:56]}  O-O {[%clk 0:02:57]} 12. cxd5 {[%clk 0:02:54]}  cxd5 {[%clk 0:02:58]} 13. Ng5 {[%clk 0:02:54]}  f6 {[%clk 0:02:54]} 14. exf6 {[%clk 0:02:45]}  gxf6 {[%clk 0:02:42]} 15. Nf3 {[%clk 0:02:44]}  e5 {[%clk 0:02:18]} 16. fxe5 {[%clk 0:01:53]}  Bb7 {[%clk 0:01:49]} 17. Bh6 {[%clk 0:01:43]}  fxe5 {[%clk 0:01:40]} 18. Bxf8 {[%clk 0:01:31]}  Rxf8 {[%clk 0:01:41]} 19. Qc1 {[%clk 0:01:19]}  Qb6 {[%clk 0:00:59]} 20. Qg5+ {[%clk 0:01:18]}  Kh8 {[%clk 0:00:50]} 21. Qxe5+ {[%clk 0:01:14]}  Kg8 {[%clk 0:00:50]} 22. Kd1 {[%clk 0:01:01]}  Qf2 {[%clk 0:00:21]} 23. Qg3+ {[%clk 0:01:00]}  Qxg3 {[%clk 0:00:18]} 24. hxg3 {[%clk 0:01:01]} 1-0


[Site "https://www.chess.com"]

[Event "Titled Tuesday Blitz May 16 Late 2023"]
[White "EsmeraldasAnderson03"]
[Black "Sun, Rick"]
[BlackFideId "30909481"]
[WhiteElo "2393"]
[BlackElo "2169"]
[Result "1-0"]
[Round "01"]
[TimeControl "180+2"]
[Date "2023.05.16"]
[WhiteClock "0:00:12"]
[BlackClock "0:00:02"]

1. d4 {[%clk 0:02:55]}  Nf6 {[%clk 0:02:59]} 2. Nf3 {[%clk 0:02:50]}  d6 {[%clk 0:02:59]} 3. Bf4 {[%clk 0:02:48]}  g6 {[%clk 0:02:59]} 4. h3 {[%clk 0:02:47]}  Bg7 {[%clk 0:03:00]} 5. e3 {[%clk 0:02:47]}  O-O {[%clk 0:03:00]} 6. Be2 {[%clk 0:02:45]}  Nc6 {[%clk 0:02:57]} 7. O-O {[%clk 0:02:45]}  Nd7 {[%clk 0:02:56]} 8. Bh2 {[%clk 0:02:45]}  e5 {[%clk 0:02:57]} 9. c4 {[%clk 0:02:45]}  e4 {[%clk 0:02:55]} 10. Nfd2 {[%clk 0:02:44]}  f5 {[%clk 0:02:55]} 11. Nc3 {[%clk 0:02:44]}  g5 {[%clk 0:02:52]} 12. a3 {[%clk 0:02:33]}  Ne7 {[%clk 0:02:42]} 13. b4 {[%clk 0:02:30]}  Ng6 {[%clk 0:02:41]} 14. c5 {[%clk 0:02:28]}  Nf6 {[%clk 0:02:27]} 15. Nb5 {[%clk 0:02:15]}  a6 {[%clk 0:02:07]} 16. Nxc7 {[%clk 0:02:14]}  Qxc7 {[%clk 0:01:52]} 17. Nc4 {[%clk 0:02:13]}  f4 {[%clk 0:01:45]} 18. Nxd6 {[%clk 0:02:10]}  Be6 {[%clk 0:01:40]} 19. Bh5 {[%clk 0:02:02]}  Qe7 {[%clk 0:01:05]} 20. Bxg6 {[%clk 0:01:58]}  hxg6 {[%clk 0:01:06]} 21. exf4 {[%clk 0:01:58]}  g4 {[%clk 0:01:00]} 22. hxg4 {[%clk 0:01:44]}  Bxg4 {[%clk 0:01:01]} 23. Qd2 {[%clk 0:01:42]}  Rad8 {[%clk 0:00:55]} 24. Rae1 {[%clk 0:01:36]}  Bf5 {[%clk 0:00:54]} 25. f3 {[%clk 0:01:35]}  Rxd6 {[%clk 0:00:50]} 26. cxd6 {[%clk 0:01:27]}  Qxd6 {[%clk 0:00:51]} 27. g4 {[%clk 0:01:22]}  Bd7 {[%clk 0:00:44]} 28. f5 {[%clk 0:01:17]}  Qd5 {[%clk 0:00:45]} 29. fxg6 {[%clk 0:01:15]}  exf3 {[%clk 0:00:44]} 30. Re5 {[%clk 0:01:01]}  Qb3 {[%clk 0:00:29]} 31. Re7 {[%clk 0:00:48]}  Bxg4 {[%clk 0:00:23]} 32. Be5 {[%clk 0:00:39]}  f2+ {[%clk 0:00:18]} 33. Qxf2 {[%clk 0:00:36]}  Bh3 {[%clk 0:00:13]} 34. Re1 {[%clk 0:00:20]}  Qd3 {[%clk 0:00:10]} 35. Qh4 {[%clk 0:00:19]}  Qxg6+ {[%clk 0:00:09]} 36. Bg3 {[%clk 0:00:17]}  Bf5 {[%clk 0:00:08]} 37. Kh1 {[%clk 0:00:16]}  Nh5 {[%clk 0:00:08]} 38. Rg1 {[%clk 0:00:16]}  Nxg3+ {[%clk 0:00:07]} 39. Rxg3 {[%clk 0:00:16]}  Qc6+ {[%clk 0:00:08]} 40. Kh2 {[%clk 0:00:16]}  Qc2+ {[%clk 0:00:08]} 41. Rg2 {[%clk 0:00:15]}  Qxg2+ {[%clk 0:00:03]} 42. Kxg2 {[%clk 0:00:16]}  Bg6 {[%clk 0:00:03]} 43. Qg5 {[%clk 0:00:14]}  Rf6 {[%clk 0:00:04]} 44. d5 {[%clk 0:00:11]}  Rd6 {[%clk 0:00:03]} 45. Rxg7+ {[%clk 0:00:07]}  Kxg7 {[%clk 0:00:01]} 46. Qe7+ {[%clk 0:00:07]}  Bf7 {[%clk 0:00:02]} 47. Qxd6 {[%clk 0:00:08]}  Be8 {[%clk 0:00:02]} 48. Qe5+ {[%clk 0:00:09]}  Kf8 {[%clk 0:00:02]} 49. d6 {[%clk 0:00:09]}  Bf7 {[%clk 0:00:02]} 50. Qe7+ {[%clk 0:00:10]}  Kg7 {[%clk 0:00:02]} 51. d7 {[%clk 0:00:11]}  Kg6 {[%clk 0:00:03]} 52. d8=Q {[%clk 0:00:12]}  Kf5 {[%clk 0:00:02]} 53. Qg5+ {[%clk 0:00:12]}  Ke6 {[%clk 0:00:02]} 54. Qde7# {[%clk 0:00:12]} 1-0


[Site "https://www.chess.com"]

[Event "Titled Tuesday Blitz May 16 Late 2023"]
[White "Gutkin, Ilya"]
[Black "De La Colina, Nicolas"]
[WhiteFideId "16203470"]
[BlackFideId "30946921"]
[WhiteElo "2265"]
[BlackElo "2046"]
[Result "1/2-1/2"]
[Round "01"]
[TimeControl "180+2"]
[Date "2023.05.16"]
[WhiteClock "0:00:10"]
[BlackClock "0:00:14"]

1. Nf3 {[%clk 0:03:00]}  Nf6 {[%clk 0:02:59]} 2. g3 {[%clk 0:03:00]}  b6 {[%clk 0:03:00]} 3. Bg2 {[%clk 0:03:00]}  Bb7 {[%clk 0:03:00]} 4. c4 {[%clk 0:03:00]}  c5 {[%clk 0:03:00]} 5. O-O {[%clk 0:03:00]}  e6 {[%clk 0:02:59]} 6. b3 {[%clk 0:03:00]}  Be7 {[%clk 0:02:58]} 7. Bb2 {[%clk 0:03:01]}  O-O {[%clk 0:02:58]} 8. d4 {[%clk 0:03:01]}  cxd4 {[%clk 0:02:58]} 9. Qxd4 {[%clk 0:03:01]}  d6 {[%clk 0:02:58]} 10. Nc3 {[%clk 0:03:01]}  a6 {[%clk 0:02:57]} 11. Rfd1 {[%clk 0:03:02]}  Nbd7 {[%clk 0:02:50]} 12. Ne1 {[%clk 0:03:02]}  Bxg2 {[%clk 0:02:48]} 13. Nxg2 {[%clk 0:03:03]}  Qc7 {[%clk 0:02:44]} 14. Ne4 {[%clk 0:03:01]}  Rfd8 {[%clk 0:02:10]} 15. Ne3 {[%clk 0:03:00]}  Ne5 {[%clk 0:01:59]} 16. Rac1 {[%clk 0:02:52]}  Rac8 {[%clk 0:01:48]} 17. Ba3 {[%clk 0:02:36]}  Nc6 {[%clk 0:01:35]} 18. Qd3 {[%clk 0:02:30]}  Nxe4 {[%clk 0:01:27]} 19. Qxe4 {[%clk 0:02:31]}  Qb7 {[%clk 0:00:58]} 20. Qf4 {[%clk 0:02:12]}  h6 {[%clk 0:00:46]} 21. h4 {[%clk 0:02:00]}  Qb8 {[%clk 0:00:45]} 22. Rc2 {[%clk 0:01:47]}  b5 {[%clk 0:00:39]} 23. Rcd2 {[%clk 0:01:33]}  Ne5 {[%clk 0:00:33]} 24. Ng4 {[%clk 0:00:42]}  Nxg4 {[%clk 0:00:17]} 25. Qxg4 {[%clk 0:00:43]}  bxc4 {[%clk 0:00:17]} 26. bxc4 {[%clk 0:00:43]}  Qc7 {[%clk 0:00:15]} 27. Bb2 {[%clk 0:00:35]}  Bf8 {[%clk 0:00:15]} 28. Ba3 {[%clk 0:00:20]}  Rd7 {[%clk 0:00:09]} 29. Qf4 {[%clk 0:00:15]}  Rcd8 {[%clk 0:00:08]} 30. Kg2 {[%clk 0:00:14]}  Qc6+ {[%clk 0:00:07]} 31. f3 {[%clk 0:00:12]}  Qa4 {[%clk 0:00:07]} 32. Rd3 {[%clk 0:00:10]}  Qc2 {[%clk 0:00:04]} 33. R1d2 {[%clk 0:00:09]}  Qa4 {[%clk 0:00:05]} 34. Bxd6 {[%clk 0:00:09]}  Bxd6 {[%clk 0:00:04]} 35. Rxd6 {[%clk 0:00:10]}  Rxd6 {[%clk 0:00:04]} 36. Rxd6 {[%clk 0:00:11]}  Rxd6 {[%clk 0:00:04]} 37. Qxd6 {[%clk 0:00:11]}  Qxc4 {[%clk 0:00:05]} 38. Qd8+ {[%clk 0:00:09]}  Kh7 {[%clk 0:00:05]} 39. Qd3+ {[%clk 0:00:10]}  Qxd3 {[%clk 0:00:06]} 40. exd3 {[%clk 0:00:10]}  Kg6 {[%clk 0:00:06]} 41. Kf2 {[%clk 0:00:11]}  Kf5 {[%clk 0:00:06]} 42. Ke3 {[%clk 0:00:11]}  Ke5 {[%clk 0:00:06]} 43. d4+ {[%clk 0:00:11]}  Kd5 {[%clk 0:00:07]} 44. Kd3 {[%clk 0:00:11]}  h5 {[%clk 0:00:06]} 45. a3 {[%clk 0:00:10]}  a5 {[%clk 0:00:05]} 46. Kc3 {[%clk 0:00:10]}  f6 {[%clk 0:00:03]} 47. Kd3 {[%clk 0:00:09]}  g5 {[%clk 0:00:03]} 48. Kc3 {[%clk 0:00:07]}  gxh4 {[%clk 0:00:01]} 49. gxh4 {[%clk 0:00:07]}  f5 {[%clk 0:00:02]} 50. Kd3 {[%clk 0:00:06]}  Kd6 {[%clk 0:00:01]} 51. Kc4 {[%clk 0:00:06]}  Kc6 {[%clk 0:00:02]} 52. f4 {[%clk 0:00:05]}  Kb6 {[%clk 0:00:01]} 53. d5 {[%clk 0:00:05]}  exd5+ {[%clk 0:00:02]} 54. Kxd5 {[%clk 0:00:05]}  Kb5 {[%clk 0:00:03]} 55. Ke5 {[%clk 0:00:05]}  Ka4 {[%clk 0:00:04]} 56. Kxf5 {[%clk 0:00:06]}  Kxa3 {[%clk 0:00:05]} 57. Kg5 {[%clk 0:00:04]}  Kb3 {[%clk 0:00:05]} 58. f5 {[%clk 0:00:05]}  a4 {[%clk 0:00:06]} 59. f6 {[%clk 0:00:06]}  a3 {[%clk 0:00:07]} 60. f7 {[%clk 0:00:07]}  a2 {[%clk 0:00:08]} 61. f8=Q {[%clk 0:00:08]}  a1=Q {[%clk 0:00:09]} 62. Qf7+ {[%clk 0:00:07]}  Kb4 {[%clk 0:00:09]} 63. Qf4+ {[%clk 0:00:05]}  Kc5 {[%clk 0:00:09]} 64. Qf5+ {[%clk 0:00:05]}  Kd6 {[%clk 0:00:08]} 65. Qf6+ {[%clk 0:00:05]}  Qxf6+ {[%clk 0:00:09]} 66. Kxf6 {[%clk 0:00:06]}  Kd7 {[%clk 0:00:09]} 67. Kg6 {[%clk 0:00:07]}  Ke7 {[%clk 0:00:10]} 68. Kxh5 {[%clk 0:00:07]}  Kf8 {[%clk 0:00:11]} 69. Kh6 {[%clk 0:00:07]}  Kg8 {[%clk 0:00:12]} 70. Kg6 {[%clk 0:00:08]}  Kh8 {[%clk 0:00:12]} 71. h5 {[%clk 0:00:09]}  Kg8 {[%clk 0:00:13]} 72. h6 {[%clk 0:00:09]}  Kh8 {[%clk 0:00:14]} 73. h7 {[%clk 0:00:10]} 1/2-1/2


[Site "https://www.chess.com"]